Workbook

Sheet Sheet1
A1: 中国石油大学（北京）外国语学院学院英语专业2014级本科生综合测评公示表
A2: 名次 | B2: 学号 | C2: 德育总成绩 | D2: 智育总成绩 | E2: 体育成绩 | F2: 必修课优良率 | G2: 综合测评成绩 | H2: 四级成绩 | I2: 体测成绩 | J2: 不及格门数 | K2: 有无纪律处分 | L2: 智育排名
A3: 1 | B3: 2014011898 | C3: 23.192 | D3: 83.41557 | E3: 7.08 | F3: 100.00% | G3: =SUM(C3:E3) -> 113.68757 | H3: 无 | I3: 70.8 | J3: 0 | K3: 无 | L3: 1
A4: 2 | B4: 2014011920 | C4: 20.67 | D4: 79.34 | E4: 7.87 | F4: 100.00% | G4: =C4+D4+E4 -> 107.88 | H4: 无 | I4: 78.7 | J4: 0 | K4: 无 | L4: 2
A5: 3 | B5: 2014011911 | C5: 23.00 | D5: 72.12 | E5: 11.93 | F5: 91.67% | G5: =C5+D5+E5 -> 107.05 | H5: 无 | I5: 84.3 | J5: 0 | K5: 无 | L5: 6
A6: 4 | B6: 2014011904 | C6: 22.008 | D6: 72.64271 | E6: 7.73 | F6: 100.00% | G6: =SUM(C6:E6) -> 102.38071 | H6: 无 | I6: 77.3 | J6: 0 | K6: 无 | L6: 5
A7: 5 | B7: 2014011929 | C7: 21.00 | D7: 73.49 | E7: 7.36 | F7: 100.00% | G7: =C7+D7+E7 -> 101.86 | H7: 无 | I7: 73.6 | J7: 0 | K7: 无 | L7: 3
A8: 6 | B8: 2014011890 | C8: 18.8 | D8: 73.04262 | E8: 8.61 | F8: 100.00% | G8: =SUM(C8:E8) -> 100.45262 | H8: 无 | I8: 86.1 | J8: 0 | K8: 无 | L8: 4
A9: 7 | B9: 2014011884 | C9: 21.212 | D9: 68.4222 | E9: 7.72 | F9: 66.67% | G9: =SUM(C9:E9) -> 97.3542 | H9: 无 | I9: 77.2 | J9: 0 | K9: 无 | L9: 7
A10: 8 | B10: 2014011919 | C10: 20.83 | D10: 66.28 | E10: 7.90 | F10: 91.67% | G10: =C10+D10+E10 -> 95.01 | H10: 无 | I10: 79 | J10: 0 | K10: 无 | L10: 9
A11: 9 | B11: 2014011892 | C11: 19.488 | D11: 67.235 | E11: 7.4 | F11: 91.67% | G11: =SUM(C11:E11) -> 94.123 | H11: 无 | I11: 74 | J11: 0 | K11: 无 | L11: 8
A12: 10 | B12: 2014011878 | C12: 20.5 | D12: 65.28802 | E12: 8.22 | F12: 100.00% | G12: =SUM(C12:E12) -> 94.00802 | H12: 无 | I12: 82.2 | J12: 0 | K12: 无 | L12: 11
A13: 11 | B13: 2014011917 | C13: 21.82 | D13: 64.46 | E13: 7.69 | F13: 100.00% | G13: =C13+D13+E13 -> 93.97 | H13: 无 | I13: 76.9 | J13: 0 | K13: 无 | L13: 14
A14: 12 | B14: 2014011909 | C14: 21.23 | D14: 63.92 | E14: 8.65 | F14: 91.67% | G14: =C14+D14+E14 -> 93.80 | H14: 无 | I14: 86.5 | J14: 0 | K14: 无 | L14: 17
A15: 13 | B15: 2014011888 | C15: 20.324 | D15: 64.9117 | E15: 8.52 | F15: 100.00% | G15: =SUM(C15:E15) -> 93.7557 | H15: 无 | I15: 85.2 | J15: 0 | K15: 无 | L15: 12
A16: 14 | B16: 2014011877 | C16: 20.14 | D16: 64.63548 | E16: 7.75 | F16: 100.00% | G16: =SUM(C16:E16) -> 92.52548 | H16: 无 | I16: 77.5 | J16: 0 | K16: 无 | L16: 13
A17: 15 | B17: 2014011880 | C17: 19.064 | D17: 65.43999 | E17: 7.92 | F17: 100.00% | G17: =SUM(C17:E17) -> 92.42399 | H17: 无 | I17: 79.2 | J17: 0 | K17: 无 | L17: 10
A18: 16 | B18: 2014011922 | C18: 21.24 | D18: 63.21 | E18: 7.69 | F18: 100.00% | G18: =C18+D18+E18 -> 92.14 | H18: 无 | I18: 76.9 | J18: 0 | K18: 无 | L18: 21
A19: 17 | B19: 2014011918 | C19: 20.06 | D19: 63.92 | E19: 7.69 | F19: 91.67% | G19: =C19+D19+E19 -> 91.67 | H19: 无 | I19: 76.9 | J19: 0 | K19: 无 | L19: 18
A20: 18 | B20: 2014011906 | C20: 19.46 | D20: 62.38 | E20: 9.27 | F20: 90.00% | G20: =C20+D20+E20 -> 91.11 | H20: 无 | I20: 92.7 | J20: 0 | K20: 无 | L20: 23
A21: 19 | B21: 2014011912 | C21: 18.95 | D21: 64.23 | E21: 7.90 | F21: 91.67% | G21: =C21+D21+E21 -> 91.08 | H21: 无 | I21: 79 | J21: 0 | K21: 无 | L21: 15
A22: 20 | B22: 2014011894 | C22: 18.196 | D22: 64.10397 | E22: 8.01 | F22: 100.00% | G22: =SUM(C22:E22) -> 90.30997 | H22: 无 | I22: 80.1 | J22: 0 | K22: 无 | L22: 16
A23: 21 | B23: 2014011907 | C23: 19.47 | D23: 62.34 | E23: 8.22 | F23: 91.67% | G23: =C23+D23+E23 -> 90.03 | H23: 无 | I23: 82.2 | J23: 0 | K23: 无 | L23: 24
A24: 22 | B24: 2014011926 | C24: 19.69 | D24: 62.22 | E24: 7.84 | F24: 75.00% | G24: =C24+D24+E24 -> 89.74 | H24: 无 | I24: 78.4 | J24: 0 | K24: 无 | L24: 26
A25: 23 | B25: 2014011893 | C25: 19.332 | D25: 63.17276 | E25: 7.03 | F25: 91.67% | G25: =SUM(C25:E25) -> 89.53476 | H25: 无 | I25: 70.3 | J25: 0 | K25: 无 | L25: 22
A26: 24 | B26: 2014011896 | C26: 19.212 | D26: 62.08727 | E26: 7.58 | F26: 100.00% | G26: =SUM(C26:E26) -> 88.87927 | H26: 无 | I26: 75.8 | J26: 0 | K26: 无 | L26: 27
A27: 25 | B27: 2014011895 | C27: 18.976 | D27: 62.32457 | E27: 7.48 | F27: 91.67% | G27: =SUM(C27:E27) -> 88.78057 | H27: 无 | I27: 74.8 | J27: 0 | K27: 无 | L27: 25
A28: 26 | B28: 2014011925 | C28: 18.86 | D28: 61.58 | E28: 8.17 | F28: 91.67% | G28: =C28+D28+E28 -> 88.62 | H28: 无 | I28: 81.7 | J28: 0 | K28: 无 | L28: 29
A29: 27 | B29: 2014011913 | C29: 19.74 | D29: 61.68 | E29: 7.10 | F29: 83.33% | G29: =C29+D29+E29 -> 88.52 | H29: 无 | I29: 71 | J29: 0 | K29: 无 | L29: 28
A30: 28 | B30: 2014011887 | C30: 19.588 | D30: 60.92443 | E30: 7.74 | F30: 100.00% | G30: =SUM(C30:E30) -> 88.25243 | H30: 无 | I30: 77.4 | J30: 0 | K30: 无 | L30: 30
A31: 29 | B31: 2014011902 | C31: 17.532 | D31: 63.39802 | E31: 7.2 | F31: 100.00% | G31: =SUM(C31:E31) -> 88.13002 | H31: 无 | I31: 72 | J31: 0 | K31: 无 | L31: 20
A32: 30 | B32: 2014011886 | C32: 20.046 | D32: 59.24996 | E32: 8.37 | F32: 75.00% | G32: =SUM(C32:E32) -> 87.66596 | H32: 无 | I32: 83.7 | J32: 0 | K32: 无 | L32: 36
A33: 31 | B33: 2014011924 | C33: 19.60 | D33: 59.85 | E33: 8.14 | F33: 100.00% | G33: =C33+D33+E33 -> 87.59 | H33: 无 | I33: 81.4 | J33: 0 | K33: 无 | L33: 33
A34: 32 | B34: 2014011931 | C34: 22.19 | D34: 57.94 | E34: 7.36 | F34: 66.67% | G34: =C34+D34+E34 -> 87.49 | H34: 无 | I34: 73.6 | J34: 0 | K34: 无 | L34: 40
A35: 33 | B35: 2014011889 | C35: 18.648 | D35: 63.40348 | E35: 4.65 | F35: 100.00% | G35: =SUM(C35:E35) -> 86.70148 | H35: 无 | I35: 46.5 | J35: 0 | K35: 无 | L35: 19
A36: 34 | B36: 2014011897 | C36: 18.092 | D36: 60.70183 | E36: 7.16 | F36: 100.00% | G36: =SUM(C36:E36) -> 85.95383 | H36: 无 | I36: 71.6 | J36: 0 | K36: 无 | L36: 31
A37: 35 | B37: 2014011876 | C37: 19.632 | D37: 58.0867 | E37: 7.95 | F37: 66.67% | G37: =SUM(C37:E37) -> 85.6687 | H37: 无 | I37: 79.5 | J37: 0 | K37: 无 | L37: 39
A38: 36 | B38: 2014011923 | C38: 19.44 | D38: 58.69 | E38: 7.15 | F38: 66.67% | G38: =C38+D38+E38 -> 85.28 | H38: 无 | I38: 71.5 | J38: 0 | K38: 无 | L38: 37
A39: 37 | B39: 2014011901 | C39: 17.668 | D39: 59.61235 | E39: 7.6 | F39: 58.33% | G39: =SUM(C39:E39) -> 84.88035 | H39: 无 | I39: 76 | J39: 0 | K39: 无 | L39: 35
A40: 38 | B40: 2014011910 | C40: 18.82 | D40: 59.62 | E40: 6.20 | F40: 75.00% | G40: =C40+D40+E40 -> 84.64 | H40: 无 | I40: 62 | J40: 0 | K40: 无 | L40: 34
A41: 39 | B41: 2014011927 | C41: 20.15 | D41: 58.26 | E41: 5.49 | F41: 58.33% | G41: =C41+D41+E41 -> 83.90 | H41: 无 | I41: 54.9 | J41: 0 | K41: 无 | L41: 38
A42: 40 | B42: 2014011908 | C42: 19.13 | D42: 56.69 | E42: 7.92 | F42: 58.33% | G42: =C42+D42+E42 -> 83.74 | H42: 无 | I42: 79.2 | J42: 0 | K42: 无 | L42: 42
A43: 41 | B43: 2014011900 | C43: 15.432 | D43: 60.572036 | E43: 6.29 | F43: 91.67% | G43: =SUM(C43:E43) -> 82.294036 | H43: 无 | I43: 62.9 | J43: 0 | K43: 无 | L43: 32
A44: 42 | B44: 2014011916 | C44: 18.56 | D44: 57.03 | E44: 6.19 | F44: 75.00% | G44: =C44+D44+E44 -> 81.77 | H44: 无 | I44: 61.9 | J44: 0 | K44: 无 | L44: 41
A45: 43 | B45: 2014011903 | C45: 18.112 | D45: 55.31001 | E45: 6.64 | F45: 50.00% | G45: =SUM(C45:E45) -> 80.06201 | H45: 无 | I45: 66.4 | J45: 0 | K45: 无 | L45: 43
A46: 44 | B46: 2014011875 | C46: 18.856 | D46: 53.11502 | E46: 7.84 | F46: 33.33% | G46: =SUM(C46:E46) -> 79.81102 | H46: 无 | I46: 78.4 | J46: 1 | K46: 无 | L46: 48
A47: 45 | B47: 2014011914 | C47: 18.28 | D47: 53.72 | E47: 7.56 | F47: 58.33% | G47: =C47+D47+E47 -> 79.56 | H47: 无 | I47: 75.6 | J47: 0 | K47: 无 | L47: 46
A48: 46 | B48: 2014011905 | C48: 18.41 | D48: 54.22 | E48: 6.86 | F48: 58.33% | G48: 79.49 | H48: 无 | I48: 68.6 | J48: 1 | K48: 无 | L48: 45
A49: 47 | B49: 2014011933 | C49: 19.13 | D49: 52.27 | E49: 6.51 | F49: 41.67% | G49: 77.92 | H49: 无 | I49: 65.1 | J49: 3 | K49: 无 | L49: 49
A50: 48 | B50: 2014011928 | C50: 18.23 | D50: 51.53 | E50: 6.18 | F50: 33.33% | G50: 75.95 | H50: 无 | I50: 61.8 | J50: 0 | K50: 无 | L50: 51
A51: 49 | B51: 2014011932 | C51: 18.08 | D51: 50.78 | E51: 6.66 | F51: 16.67% | G51: 75.52 | H51: 无 | I51: 66.6 | J51: 2 | K51: 无 | L51: 53
A52: 50 | B52: 2013011222 | C52: 17.78 | D52: 53.36 | E52: 3.62 | F52: 41.67% | G52: 74.75 | H52: 无 | I52: 36.2 | J52: 0 | K52: 无 | L52: 47
A53: 51 | B53: 2014011885 | C53: 16.672 | D53: 51.68443 | E53: 6.2 | F53: 25.00% | G53: =SUM(C53:E53) -> 74.55643 | H53: 无 | I53: 62 | J53: 1 | K53: 无 | L53: 50
A54: 52 | B54: 2014011934 | C54: 18.09 | D54: 50.88 | E54: 5.20 | F54: 25.00% | G54: =C54+D54+E54 -> 74.17 | H54: 无 | I54: 52 | J54: 2 | K54: 无 | L54: 52
A55: 53 | B55: 2013010430 | C55: 13.772 | D55: 54.44551 | E55: 3.8 | F55: 58.33% | G55: =SUM(C55:E55) -> 72.01751 | H55: 无 | I55: 38 | J55: 0 | K55: 无 | L55: 44

Sheet Sheet2

Sheet Sheet3
